Cogmind - Beta 13 @@@ ROGUE MODE // 2024.07.25 @ 15:43:40 Player: Tuwiuu Result: Destroyed by S-27 Virus with Autogun Performance ------------- Evolutions (3) 1500 Regions Visited (8) 1600 Robots Destroyed (77) 385 Value Destroyed (1843) 1843 Prototype IDs (6) 120 Alien Tech Used (0) 0 Bonus (713) 713 TOTAL SCORE: 6161 Bonus ------- Entered DSFs 500 Aligned with FarCom 300 Friendly Fire -87 Cogmind --------- Core Integrity 0/700 Matter 180/300 Energy 34/100 System Corruption 0% Temperature Cool (0) Movement Core (50) Location -7/DSF Parts ------- > --- POWER (1) -------- (None) > --- PROPULSION (4) --- (None) > --- UTILITY (6) ------ (None) > --- WEAPON (2) ------- (None) > --- INVENTORY (5) ---- Light Deuterium Engine Airjet VTOL Module Terrain Scanner Hacking Suite Peak State ------------ > --- POWER ------------ Heavy Ion Engine > --- PROPULSION ------- Wheel Wheel Wheel Wheel > --- UTILITY ---------- Huge Storage Unit Structural Scanner Improved Terrain Scanner Terrain Scan Processor Hacking Suite Hacking Suite > --- WEAPON ----------- Advanced Beam Rifle Longsword +1 > --- INVENTORY -------- Light Deuterium Engine Light Nuclear Core Wheel Improved Hover Unit Airjet Airjet Airjet Flight Unit Flight Unit VTOL Module Small Storage Unit Terrain Scanner Seismic Detector Hacking Suite System Shield Advanced Beam Rifle High-powered Shotgun High-powered Shotgun Grenade Launcher Rocket Launcher [Rating: 36] Favorites ----------- Power Improved Ion Engine Engine Improved Ion Engine Power Core Light Nuclear Core Propulsion Wheel Leg Aluminum Leg Wheel Wheel Hover Unit Airjet Utility Structural Scanner Device Structural Scanner Storage High-capacity Storage Unit Processor Signal Interpreter Hackware Hacking Suite Protection Light Armor Plating Weapon Longsword +1 Energy Gun Spread Laser Energy Cannon Advanced Beam Cannon Ballistic Gun Heavy Assault Rifle Launcher Rocket Launcher Slashing Weapon Longsword +1 Build | -11 -10 -9 -9 -9 -8 -8 -7 -7 ------- Run | Yrd Mat Mat Min Exi Min Mat Fac DSF Slots Evolved 6 | . . 2 . . . 2 2 . Power . | . . . . . . . . . Propulsion 2 | . . . . . . 2 . . Utility 4 | . . 2 . . . . 2 . Weapon . | . . . . . . . . . Parts Attached 90 | . 4 27 10 7 10 17 2 13 Power 6 | . . 2 1 . 1 1 . 1 Engine 4 | . . 2 1 . . 1 . . Core 2 | . . . . . 1 . . 1 Reactor . | . . . . . . . . . Propulsion 38 | . . 9 3 2 4 10 . 10 Treads . | . . . . . . . . . Leg 6 | . . 4 1 1 . . . . Wheel 29 | . . 5 2 1 4 10 . 7 Hover 3 | . . . . . . . . 3 Flight . | . . . . . . . . . Utility 20 | . 2 5 2 4 3 2 2 . Device 10 | . 1 2 2 2 2 . 1 . Storage 5 | . 1 1 . 2 . 1 . . Processor 2 | . . 1 . . . . 1 . Hackware 2 | . . . . . 1 1 . . Protection 1 | . . 1 . . . . . . Artifact . | . . . . . . . . . Weapon 26 | . 2 11 4 1 2 4 . 2 Energy Gun 6 | . . 4 1 . . 1 . . Energy Cannon 1 | . . 1 . . . . . . Ballistic Gun 11 | . 1 5 2 . 1 2 . . Ballistic Cannon . | . . . . . . . . . Launcher 5 | . 1 1 . . 1 . . 2 Special Weapon . | . . . . . . . . . Impact Weapon . | . . . . . . . . . Slashing Weapon 3 | . . . 1 1 . 1 . . Piercing Weapon . | . . . . . . . . . Special Melee Weapon . | . . . . . . . . . Unidentified Prototypes 6 | . . 2 1 1 . 2 . . Parts Lost 25 | . . 3 3 . . . . 19 Power 3 | . . 1 . . . . . 2 Propulsion 13 | . . 2 1 . . . . 10 Utility 4 | . . . 1 . . . . 3 Weapon 5 | . . . 1 . . . . 4 Highest Loss Streak 16 | . . 2 3 . . . . 16 To Critical Strikes . | . . . . . . . . . Average Slot Usage (%) 99 | . 94 99 99 100 100 100 100 93 Engine 9 | . 14 10 11 11 7 6 7 . Core 1 | . . . . . 3 2 . 5 Leg 8 | . 28 8 18 11 1 . . . Wheel 17 | . . 13 3 10 20 36 30 27 Device 17 | . 8 22 22 22 22 11 15 14 Storage 10 | . 14 11 11 11 11 9 7 6 Processor 5 | . . 11 11 11 . . 7 6 Hackware 5 | . . . . . 10 15 15 14 Energy Gun 3 | . . 7 10 . . . 7 6 Ballistic Gun 11 | . 28 13 9 11 8 8 . . Slashing Weapon 6 | . . . 2 11 11 8 7 6 Naked Turns 9 | . . . . . . . . 9 Heaviest Build 95 | 14 20 38 40 55 56 95 95 95 Greatest Support 40 | 20 20 32 20 10 26 40 40 40 Greatest Overweight (x) 8 | . . 1 3 5 5 2 2 8 Average Overweight (x) 1 | . . . 1 3 2 1 2 1 Largest Inventory Capacity 35 | . 10 15 15 35 20 25 25 25 Average Capacity 17 | . 9 14 15 17 20 20 25 24 Most Carried 23 | . 10 15 15 15 20 22 21 23 Average Carried 16 | . 8 13 14 14 19 19 20 21 Final Capacity 25 | 8 10 15 15 20 20 25 25 5 Final Carried 22 | 6 10 15 14 15 20 22 20 5 Class Distribution -------------------- 46% | Scavenger-Mutant 18% | Skirmisher 16% | Scavenger-Assassin 9% | Mutant 8% | Scavenger-Skirmisher Dominant Class ---------------- Mutant | -10/Materials Skirmisher | -9/Materials Skirmisher | -9/Mines Scavenger-Mutant | -9/Exiles Scavenger-Mutant | -8/Mines Scavenger-Mutant | -8/Materials Scavenger-Assassin | -7/Factory Scavenger-Assassin | -7/DSF Resources | -11 -10 -9 -9 -9 -8 -8 -7 -7 ----------- Run | Yrd Mat Mat Min Exi Min Mat Fac DSF Matter Collected 1535 | 192 148 587 127 . 281 196 . 4 Remotely . | . . . . . . . . . Salvage Created 2749 | . 222 1006 93 . 503 741 . 184 Parts 179 | . 16 70 6 . 25 47 . 15 Haulers Intercepted 4 | . . 3 . . . 1 . . Recyclers Shooed 3 | . 1 1 . . 1 . . . Parts Field Recycled . | . . . . . . . . . Retrieved Matter . | . . . . . . . . . Parts Self-Destructed . | . . . . . . . . . Prevented . | . . . . . . . . . Kills | -11 -10 -9 -9 -9 -8 -8 -7 -7 ------- Run | Yrd Mat Mat Min Exi Min Mat Fac DSF Combat Hostiles Destroyed 49 | . 6 20 2 . 7 9 . 5 Melee 11 | . . . 1 . 3 7 . . Guns 24 | . 4 16 1 . 1 2 . . Cannons 2 | . . 2 . . . . . . AOE 12 | . 2 2 . . 3 . . 5 Classes Destroyed 14 | . 5 5 . . 3 1 . . Worker 8 | . . 3 . . 2 3 . . Builder 5 | . . . . . 2 3 . . Tunneler 1 | . . . . . 1 . . . Hauler 4 | . . 3 . . . 1 . . Recycler 6 | . 1 2 . . 2 1 . . Operator 2 | . 1 . . . . 1 . . Watcher 2 | . 1 1 . . . . . . Swarmer 14 | . 3 3 . . 3 . . 5 Grunt 19 | . 3 10 . . 2 4 . . Brawler 2 | . . 1 . . 1 . . . Duelist 2 | . . 1 . . . 1 . . Sentry 9 | . . 5 2 . . 2 . . Specialist 1 | . . . . . . 1 . . Hunter 2 | . . . . . 1 1 . . Best Kill Streak 6 | . 6 6 2 . 3 3 . 5 Combat Bots Only 6 | . 6 5 2 . 3 3 . 5 Max Kills in Single Turn 4 | . 2 2 1 . 2 1 . 4 Gunslinging . | . . . . . . . . . Exploded 4 | . 2 2 . . 2 . . 4 Melee 1 | . . . 1 . 1 1 . . Uniques/NPCs Destroyed . | . . . . . . . . . Combat | -11 -10 -9 -9 -9 -8 -8 -7 -7 -------- Run | Yrd Mat Mat Min Exi Min Mat Fac DSF Hostile Shots Fired 288 | . 18 87 39 . 14 40 . 90 Missed 74 | . 4 20 13 . 5 13 . 19 Damage Taken 3762 | . 136 888 388 . 126 437 . 1787 Core 1089 | . . 129 90 . 41 114 . 715 Absorbed by Shields . | . . . . . . . . . Regen/Repaired (Parts) 91 | . . 91 . . . . . . Core Remaining (%) 78 | 100 100 . . . 35 79 . . Volleys Fired 120 | . 19 64 6 1 19 8 . 3 Largest 2 | . 2 2 2 1 1 2 . 1 Hottest 140 | . 40 91 140 23 33 50 . 33 Shots Fired 215 | . 37 127 12 1 19 16 . 3 Gun 195 | . 36 116 12 1 14 16 . . Cannon 10 | . . 10 . . . . . . Launcher 10 | . 1 1 . . 5 . . 3 Special . | . . . . . . . . . Kinetic 144 | . 36 73 4 1 14 16 . . Thermal 61 | . . 53 8 . . . . . Explosive 10 | . 1 1 . . 5 . . 3 Electromagnetic . | . . . . . . . . . Robot Hit Streak 16 | . 8 16 11 . 4 10 . 2 Robot Miss Streak 4 | . 2 4 1 . 3 2 . 1 Penetration Max . | . . . . . . . . . Secondary Targets 1 | . . 1 . . . . . . Max Gunslinging Chain 1 | . . 1 . . . . . . Shots Hit Robots 219 | . 25 109 12 . 25 45 1 2 Core Hits 159 | . 15 89 5 . 13 22 . 15 Critical Kills . | . . . . . . . . . Critical Parts Destroyed . | . . . . . . . . . Critical Strikes 4 | . . . 1 . . 3 . . Sever 4 | . . . 1 . . 3 . . Melee Attacks 56 | . . . 2 2 15 36 1 . Impact . | . . . . . . . . . Slashing 56 | . . . 2 2 15 36 1 . Piercing . | . . . . . . . . . Sneak Attacks 20 | . . . . . 9 10 1 . Combat Hostiles 1 | . . . . . 1 . . . Follow-up Attacks . | . . . . . . . . . Damage Inflicted 6606 | . 423 1826 259 . 1399 2115 79 505 Guns 2421 | . 305 1534 190 . 137 255 . . Cannons 165 | . . 165 . . . . . . Explosions 957 | . 118 127 . . 207 . . 505 Melee 3063 | . . . 69 . 1055 1860 79 . Ramming . | . . . . . . . . . Kinetic 1711 | . 305 970 44 . 137 255 . . Thermal 875 | . . 729 146 . . . . . Explosive 957 | . 118 127 . . 207 . . 505 Electromagnetic . | . . . . . . . . . Impact . | . . . . . . . . . Slashing 3063 | . . . 69 . 1055 1860 79 . Piercing . | . . . . . . . . . Highest Corruption 1 | . . 1 1 1 1 . . . Average Corruption 1 | . . 1 1 1 1 . . . Corruption Purged . | . . . . . . . . . Corruption Blocked . | . . . . . . . . . Effects 28 | . . 7 8 5 8 . . . Message Errors 8 | . . 3 . 1 4 . . . Matter Fused 8 | . . 3 3 2 . . . . Heat Flow Errors 3 | . . . 2 . 1 . . . Energy Discharges 2 | . . . 1 . 1 . . . Parts Fused 2 | . . . 1 1 . . . . Data Loss (minor) 2 | . . . 1 . 1 . . . Data Loss (major) 3 | . . 1 . 1 1 . . . Overload Shots . | . . . . . . . . . Overflow Damage 671 | . . 12 . . 364 256 39 . Projectiles . | . . . . . . . . . Explosions 17 | . . 12 . . 5 . . . Melee 654 | . . . . . 359 256 39 . Knockbacks . | . . . . . . . . . Impact . | . . . . . . . . . Kinetic . | . . . . . . . . . Secondary . | . . . . . . . . . Self-Inflicted Damage 24 | . . . . . 17 . . 7 Shots 2 | . . . . . 1 . . 1 Rammed . | . . . . . . . . . Targets Rammed . | . . . . . . . . . Kicked . | . . . . . . . . . Crushed . | . . . . . . . . . Highest Temperature 348 | . . 348 335 . 257 . . . Average Temperature 97 | . . 81 155 . 122 . . . Received Heat Transfer 648 | . 48 276 126 . 36 126 . 36 Effects 4 | . . 2 2 . . . . . Energy Bleed 4 | . . 2 2 . . . . . Siege Activations . | . . . . . . . . . Robots Corrupted . | . . . . . . . . . Combat Hostiles . | . . . . . . . . . Parts Fried . | . . . . . . . . . Impact Corruptions . | . . . . . . . . . Robots Melted . | . . . . . . . . . Combat Hostiles . | . . . . . . . . . Parts Melted 1 | . . 1 . . . . . . Heat Transferred 1321 | . . 1086 235 . . . . . Parts Sabotaged . | . . . . . . . . . Parts Stolen . | . . . . . . . . . Parts Stripped . | . . . . . . . . . Power Chain Reactions . | . . . . . . . . . Alert | -11 -10 -9 -9 -9 -8 -8 -7 -7 ------- Run | Yrd Mat Mat Min Exi Min Mat Fac DSF Peak Influence 395 | . 231 395 163 . 177 215 65 105 Initial 153 | . . 37 153 . . . 62 45 Average 94 | . 128 215 70 . 73 42 64 46 Maximum Alert Level 1 | . 1 1 . . . 1 . . Low Security (%) 84 | . 53 46 100 . 100 98 100 100 Level 1 15 | . 46 53 . . . 1 . . Level 2 . | . . . . . . . . . Level 3 . | . . . . . . . . . Level 4 . | . . . . . . . . . Level 5 . | . . . . . . . . . High Security . | . . . . . . . . . Max Security . | . . . . . . . . . Squads Dispatched 10 | . 1 2 . . . 4 . 3 Investigation 3 | . 1 1 . . . 1 . . Extermination . | . . . . . . . . . Reinforcement 7 | . . 1 . . . 3 . 3 Assault . | . . . . . . . . . Garrison . | . . . . . . . . . Intercept . | . . . . . . . . . Searches Triggered . | . . . . . . . . . Construction Impeded . | . . . . . . . . . Haulers Reinforced . | . . . . . . . . . Active Scanning Responses . | . . . . . . . . . Cargo Convoy Interrupts . | . . . . . . . . . Stealth | -11 -10 -9 -9 -9 -8 -8 -7 -7 --------- Run | Yrd Mat Mat Min Exi Min Mat Fac DSF Distress Signals 4 | . . 2 . . . 2 . . Communications Jammed . | . . . . . . . . . Distress Signals . | . . . . . . . . . Times Spotted 86 | . 10 35 4 . 6 16 . 15 Peak Tracking Total 9 | . 3 7 2 . 3 5 . 9 Tactical Retreats 10 | . . 2 1 . 1 4 . 2 Traps | -11 -10 -9 -9 -9 -8 -8 -7 -7 ------- Run | Yrd Mat Mat Min Exi Min Mat Fac DSF Traps Triggered 2 | . . . . . . 1 . 1 Indirectly . | . . . . . . . . . Trap Hack Attempts . | . . . . . . . . . Triggered . | . . . . . . . . . Disarmed . | . . . . . . . . . Reprogrammed . | . . . . . . . . . Reused . | . . . . . . . . . Traps Extracted . | . . . . . . . . . Installed . | . . . . . . . . . Triggered 1 | . . . 1 . . . . . Machines | -11 -10 -9 -9 -9 -8 -8 -7 -7 ---------- Run | Yrd Mat Mat Min Exi Min Mat Fac DSF Machines Disabled 1 | . . . 1 . . . . . Max in Single Turn . | . . . . . . . . . Garrison Access 1 | . . . . . . 1 . . Machines Repaired . | . . . . . . . . . Machines Dismantled . | . . . . . . . . . Machines Sabotaged . | . . . . . . . . . Overloaded Fab Kills . | . . . . . . . . . Hacking | -11 -10 -9 -9 -9 -8 -8 -7 -7 --------- Run | Yrd Mat Mat Min Exi Min Mat Fac DSF Machines Accessed 18 | . 5 4 . 4 . 4 1 . Terminals 10 | . 4 2 . . . 3 1 . Fabricators . | . . . . . . . . . Repair Stations 1 | . . 1 . . . . . . Recycling Units 1 | . 1 . . . . . . . Scanalyzers 1 | . . 1 . . . . . . Garrison Access 1 | . . . . . . 1 . . Total Hacks 107 | . 21 22 . 49 . 13 2 . Successful 77 | . 8 11 . 49 . 8 1 . Failed 30 | . 13 11 . . . 5 1 . Catastrophic 3 | . 2 1 . . . . . . Database Lockouts . | . . . . . . . . . Manual 41 | . 17 11 . 1 . 12 . . Terminals 43 | . 19 13 . . . 9 2 . Fabricators . | . . . . . . . . . Repair Stations 7 | . . 7 . . . . . . Recycling Units 2 | . 2 . . . . . . . Scanalyzers 2 | . . 2 . . . . . . Garrison Access 4 | . . . . . . 4 . . Terminal Hacks 60 | . 5 3 . 49 . 2 1 . Record 49 | . . . . 49 . . . . Robot Analysis 1 | . . 1 . . . . . . Open DSF 1 | . . . . . . . 1 . Level Access Points 1 | . 1 . . . . . . . Branch Access Points 2 | . 1 1 . . . . . . Alert Level 1 | . 1 . . . . . . . Unreport Threat 1 | . . . . . . 1 . . Maintenance Status 3 | . 1 1 . . . 1 . . Zone Layout 1 | . 1 . . . . . . . Fabricator Hacks . | . . . . . . . . . Repair Station Hacks 5 | . . 5 . . . . . . Scan Component 3 | . . 3 . . . . . . Repair 2 | . . 2 . . . . . . Recycling Unit Hacks 1 | . 1 . . . . . . . Report Inventory 1 | . 1 . . . . . . . Scanalyzer 1 | . . 1 . . . . . . Insert Component 1 | . . 1 . . . . . . Garrison Access Hacks 1 | . . . . . . 1 . . Seal Access 1 | . . . . . . 1 . . Unauthorized Hacks 9 | . 2 2 . . . 5 . . Terminals 6 | . 1 2 . . . 3 . . Assimilate 1 | . 1 . . . . . . . Botnet 3 | . . 1 . . . 2 . . Operators 2 | . . 1 . . . 1 . . Fabricators . | . . . . . . . . . Repair Stations . | . . . . . . . . . Recycling Units 1 | . 1 . . . . . . . Tunnel 1 | . 1 . . . . . . . Scanalyzers . | . . . . . . . . . Garrison Access 2 | . . . . . . 2 . . Broadcast 1 | . . . . . . 1 . . Decoy 1 | . . . . . . 1 . . Data Cores Recovered . | . . . . . . . . . Used . | . . . . . . . . . Hacking Detections 12 | . 5 4 . . . 3 . . Full Trace Events 1 | . . 1 . . . . . . Feedback Events . | . . . . . . . . . Feedback Blocked . | . . . . . . . . . Robot Schematics Acquired . | . . . . . . . . . Robots Built . | . . . . . . . . . Authchips . | . . . . . . . . . Time . | . . . . . . . . . Total Robot Build Rating . | . . . . . . . . . Part Schematics Acquired . | . . . . . . . . . Parts Built . | . . . . . . . . . Authchips . | . . . . . . . . . Time . | . . . . . . . . . Total Part Build Rating . | . . . . . . . . . Parts Repaired 2 | . . 2 . . . . . . Time 64 | . . 64 . . . . . . Parts Recycled . | . . . . . . . . . Recycled Matter . | . . . . . . . . . Retrieved Matter . | . . . . . . . . . Retrieved Components . | . . . . . . . . . Parts Scanalyzed 1 | . . 1 . . . . . . Part Schematics Acquired . | . . . . . . . . . Parts Damaged . | . . . . . . . . . Bothacking | -11 -10 -9 -9 -9 -8 -8 -7 -7 ------------ Run | Yrd Mat Mat Min Exi Min Mat Fac DSF Used RIF Installer . | . . . . . . . . . Robots Hacked . | . . . . . . . . . Non-combat . | . . . . . . . . . Combat . | . . . . . . . . . Robot Hacks Applied . | . . . . . . . . . Relay Couplers Released . | . . . . . . . . . Fabnet Peak Effective % . | . . . . . . . . . Robots Rewired . | . . . . . . . . . Allies Hacked . | . . . . . . . . . Hacks Repelled . | . . . . . . . . . Allies | -11 -10 -9 -9 -9 -8 -8 -7 -7 -------- Run | Yrd Mat Mat Min Exi Min Mat Fac DSF Total Allies 3 | . 1 . 2 . . . . . Largest Group 2 | . 1 . 2 1 . . . . Highest-Rated Group 49 | . 10 . 49 18 . . . . Highest-Rated Ally 31 | . 10 . 31 18 . . . . Total Orders . | . . . . . . . . . Ally Attacks 1 | . . . 1 . . . . . Total Damage . | . . . . . . . . . Kills . | . . . . . . . . . Allies Corrupted . | . . . . . . . . . Allies Melted . | . . . . . . . . . Intel | -11 -10 -9 -9 -9 -8 -8 -7 -7 ------- Run | Yrd Mat Mat Min Exi Min Mat Fac DSF Robot Analysis Total 1 | . . 1 . . . . . . Derelict Logs Recovered 2 | . . . 2 . . . . . Drone Launches . | . . . . . . . . . Drone Recoveries . | . . . . . . . . . Exploration | -11 -10 -9 -9 -9 -8 -8 -7 -7 ------------- Run | Yrd Mat Mat Min Exi Min Mat Fac DSF Turns Passed 6992 | . 643 1078 1103 1205 862 1728 71 302 Spaces Moved 4045 | 1 404 417 603 863 648 882 58 169 Core 18 | . . . . . . . . 18 Treads . | . . . . . . . . . Legs 930 | 1 404 159 366 . . . . . Wheels 3097 | . . 258 237 863 648 882 58 151 Hover . | . . . . . . . . . Flight . | . . . . . . . . . Fastest Speed 50 | 120 120 100 125 125 110 95 110 50 Average Speed 125 | 120 120 141 164 136 113 95 110 104 Slowest Speed 260 | 120 120 190 260 155 155 110 110 200 Overloaded Moves . | . . . . . . . . . Propulsion Burnouts . | . . . . . . . . . Robots Hopped . | . . . . . . . . . Cave-ins Triggered . | . . . . . . . . . Exploration Rate (%) 54 | 2 51 35 98 95 88 39 1 79 Regions Visited 8 Branch Regions 3 Pre-discovered Areas 4 | . 1 . 2 1 . . . . Known Exits Taken 6 | . 1 1 1 1 1 . 1 . Unknown Exits Taken 2 | 1 . . . . . 1 . . Scrap Searched 3 | . . . 3 . . . . . Spaces Dug 8 | . . . . 2 . 6 . . Terrain Destroyed 69 | . 9 13 . 2 29 6 . 10 Melee 8 | . . . . 2 . 6 . . Projectile . | . . . . . . . . . AOE 61 | . 9 13 . . 29 . . 10 Terrain Rammed . | . . . . . . . . . Walls Destroyed . | . . . . . . . . . Machines Disabled . | . . . . . . . . . Actions | -11 -10 -9 -9 -9 -8 -8 -7 -7 --------- Run | Yrd Mat Mat Min Exi Min Mat Fac DSF Total 5705 | . 524 785 695 884 737 1727 64 289 Wait 1263 | . 91 229 67 2 29 740 4 101 Move 4037 | . 403 416 602 862 647 881 57 169 Hop . | . . . . . . . . . Pick Up 71 | . 5 27 3 3 10 20 . 3 Fast Attach 14 | . 2 5 2 3 . 2 . . Attach 27 | . . 6 3 1 1 3 2 11 Detach 3 | . . . 1 1 . 1 . . Swap 49 | . 2 16 5 3 9 12 . 2 Drop 65 | . 2 22 4 6 7 24 . . Fire 120 | . 19 64 6 1 19 8 . 3 Melee 56 | . . . 2 2 15 36 1 . Ram . | . . . . . . . . . Kick . | . . . . . . . . . Crush . | . . . . . . . . . Escape Stasis . | . . . . . . . . . Rewire . | . . . . . . . . . Trap . | . . . . . . . . . Miscellaneous . | . . . . . . . . . Route ------- -11/Scrapyard -10/Materials (discovered 5 exits: *Mat x3 / *Min x2) -9/Materials (discovered 2 exits: *Min x2) -9/Mines (discovered 3 exits: *Mat x2 / *Exi) -9/Exiles (discovered 2 exits: *Min x2) -8/Mines -8/Materials (discovered 2 exits: *Fac x2) -7/Factory -7/DSF (discovered 1 exit: [*Fac]) History --------- Turn | Location | Event 1 | -11/Scrapyard | Discovered new exit (range 0) 1 | -11/Scrapyard | Entered Materials 303 | -10/Materials | Build established: Mutant 453 | -10/Materials | Discovered new exit (range 16) 550 | -10/Materials | Discovered new exit (range 6) 566 | -10/Materials | Identified exit to Mines 566 | -10/Materials | Identified exit to Materials 644 | -10/Materials | Entered another Materials area 644 | -9/Materials | Evolved 2 slots: Utility x2 964 | -9/Materials | Repaired Beam Rifle 997 | -9/Materials | Repaired Shotgun 1162 | -9/Materials | Discovered new exit (range 15) 1307 | -9/Materials | Identified exit to Mines 1669 | -9/Materials | Build established: Skirmisher 1722 | -9/Materials | Entered Mines 1794 | -9/Mines | Discovered new exit (range 5) 1801 | -9/Mines | Received a Rocket Launcher from a helpful Derelict 1812 | -9/Mines | Identified exit to Materials 2486 | -9/Mines | A weapon hastily lodged in a ceiling crevice suddenly fell to the ground 2581 | -9/Mines | Core integrity fell below 50% 2628 | -9/Mines | Lost 3 parts (1n1u1w) 2631 | -9/Mines | Found a damaged Exp. Sensor Array with a note attached 2634 | -9/Mines | Found Prototype Device 2634 | -9/Mines | Identified Exp. Sensor Array 2654 | -9/Mines | Learned location of Zion (-6) 2656 | -9/Mines | Discovered exit to Materials (range 8) 2798 | -9/Mines | Deemed a non-threat by the Exiles lab entrance 2798 | -9/Mines | Discovered new exit (range 5) 2802 | -9/Mines | Identified exit to Exiles 2825 | -9/Mines | Entered Exiles 2825 | -9/Exiles | Accompanied by 1 ally 2844 | -9/Exiles | Discovered new exit (range 15) 2860 | -9/Exiles | Identified exit to Mines 2883 | -9/Exiles | Build established: Scavenger-Assassin 2887 | -9/Exiles | Met 8R-AWN 2914 | -9/Exiles | Met EX-HEX 3010 | -9/Exiles | Met EX-DEC 3120 | -9/Exiles | Met EX-BIN 3137 | -9/Exiles | Aligned with FarCom system 3139 | -9/Exiles | Given EX-Vault access code 3212 | -9/Exiles | Opened EX-Vault 3274 | -9/Exiles | Found Prototype Slashing Weapon 3274 | -9/Exiles | Identified Longsword +1 3302 | -9/Exiles | Warned to stay clear of 0b10 Research branches 3455 | -9/Exiles | Discovered exit to Mines (range 14) 3594 | -9/Exiles | Visited The Gauntlet 3691 | -9/Exiles | Build established: Scavenger-Mutant 4030 | -9/Exiles | Left Exiles lab with Longsword +1 4030 | -9/Exiles | Entered Mines 4711 | -8/Mines | Discovered exit to Materials (range 15) 4892 | -8/Mines | Entered Materials 4892 | -8/Materials | Evolved 2 slots: Propulsion x2 5535 | -8/Materials | Discovered new exit (range 7) 6475 | -8/Materials | Discovered new exit (range 16) 6620 | -8/Materials | Entered Factory 6620 | -7/Factory | Evolved 2 slots: Utility x2 6627 | -7/Factory | Identified exit to DSF 6691 | -7/Factory | Entered DSF 6752 | -7/DSF | Additional patrols routed to DSF 6915 | -7/DSF | Build established: Scavenger-Assassin 6984 | -7/DSF | Core integrity fell below 50% 6984 | -7/DSF | Released all parts (5) 6990 | -7/DSF | Core integrity fell below 20% 6992 | -7/DSF | Discovered new exit (range 16) 6993 | -7/DSF | Destroyed by S-27 Virus with Autogun Last Messages --------------- 06977_ Wheel destroyed. 06977_ Grenade Launcher destroyed. 06978_ Longsword +1 destroyed. 06979_ The unstable cave ceiling collapses. 06979_ Lgt. Nuclear Core crushed. 06979_ Wheel destroyed. 06980_ Structural Scanner destroyed. 06984_ Airjet destroyed. 06984_ Hacking Suite destroyed. 06984_ Critical hit (Blast). 06984_ Knocked back. 06984_ Released Huge Storage Unit. 06984_ Released Hacking Suite. 06984_ Released Terrain Scan Processor. 06984_ Released Imp. Hover Unit. 06984_ Released Airjet. 06992_ EXIT=FOUND 06992_ Triggered Alarm Trap. 06992_ An alarm sounds. 06992_ G-47 Trooper destroyed. Map ----- +----------------------------------------------------+ | ?#??????#?????#????????????????????? | | ???##???##?#???????????????????????? | | #?####????????##???????????????????? | | ??#????????##????##????????????????? | | #?##??#??####??###????#????????????? | | ??#??###########?#?????????????????? | | ################???????????????????? | | ####### [^^[!!##?#?#????#??????????? | | //# # [^^^!!####???#?????????????? | | [[[= ##?#?????????????????? | | %%[* ###?????#??#?????????? | | //# ## [ %####?###???????????????? | | //# ###%[= ####?#????????????????? | | ####### =% %%###?##??#????????????? | | ####### ![%%###??#?????#?????????? | | ####### %=%%####?#?##?#??????????? | | ###?#####!![!###??#???#??##????????? | | ###?###!!=%!!!###?##?????#?????????? | | #?##?##!! [=%!##???#??????##???????? | | #######!! x=!!##??#???#?#??????????? | | #########% x#################??????? | | ==# !# =##]]]# ## #??????? | | ==#!!!# H % #]]]# ## #??????? | | s! ]]#??????? | | ]]#??????? | | !! %g %g@]]#??????? | | **#===# *%s% #!!!# ## **#??????? | | **#===### ###!!!# ## **#??????? | | ######### ############ ###??????? | | #######!!"%"! ???????? ! !????????? | | #######!! " !??????????! !#???????? | | ###?###!! ? #???????!! !#???????? | | ####?#### ##????????## ##???????? | | ####### / ?????????! ????????? | | #####?# / ?????????! ????????? | | ####?##// ? ?????????# #????????? | | ==# =### ##?????????#x #????????? | | ==#===### ##????????? "????????? | | ?????? ?????????? | | ??????